Cogmind - Beta 14 @@@ ROGUE MODE // 2024.12.28 @ 07:18:14 Player: Zoe Result: Destroyed by G-47 Trooper with Particle Gun Performance ------------- Evolutions (2) 1000 Regions Visited (6) 1200 Robots Destroyed (27) 135 Value Destroyed (623) 623 Prototype IDs (1) 20 Alien Tech Used (0) 0 Bonus (0) 0 TOTAL SCORE: 2978 Bonus ------- None Cogmind --------- Core Integrity 0/550 Matter 196/300 Energy 125/125 System Corruption 0% Temperature Cool (9) Movement Core (350) Ox6 Location -8/Storage Parts ------- > --- POWER (1) -------- Light Ion Engine > --- PROPULSION (5) --- (None) > --- UTILITY (3) ------ Improved Heat Sink Small Storage Unit > --- WEAPON (2) ------- Assault Cannon Assault Cannon > --- INVENTORY (8) ---- Assault Cannon Assault Cannon Assault Cannon Peak State ------------ > --- POWER ------------ Light Ion Engine > --- PROPULSION ------- Flight Unit Flight Unit Flight Unit Flight Unit > --- UTILITY ---------- Bomb Drone Bay > --- WEAPON ----------- Particle Gun Beam Cannon > --- INVENTORY -------- Flight Unit Small Storage Unit Small Storage Unit [Rating: 22] Favorites ----------- Power Light Ion Engine Engine Light Ion Engine Propulsion Flight Unit Treads Light Treads Flight Unit Flight Unit Utility Small Storage Unit Device Improved Heat Sink Storage Small Storage Unit Processor Signal Interpreter Weapon Assault Cannon Energy Gun Medium Laser Energy Cannon Beam Cannon Ballistic Cannon Assault Cannon Special Melee Weapon Datajack Build | -11 -10 -10 -9 -9 -8 -8 ------- Run | Yrd Mat Min Mat Min Mat Sto Slots Evolved 4 | . . . 2 . 2 . Power . | . . . . . . . Propulsion 3 | . . . 2 . 1 . Utility 1 | . . . . . 1 . Weapon . | . . . . . . . Parts Attached 32 | 6 7 1 4 3 1 10 Power 3 | 1 1 . . . . 1 Engine 3 | 1 1 . . . . 1 Core . | . . . . . . . Reactor . | . . . . . . . Propulsion 9 | 2 . . 4 . 1 2 Treads 2 | 2 . . . . . . Leg . | . . . . . . . Wheel . | . . . . . . . Hover . | . . . . . . . Flight 7 | . . . 4 . 1 2 Utility 7 | 1 1 1 . 3 . 1 Device 2 | . . . . 1 . 1 Storage 4 | 1 . 1 . 2 . . Processor 1 | . 1 . . . . . Hackware . | . . . . . . . Protection . | . . . . . . . Artifact . | . . . . . . . Weapon 13 | 2 5 . . . . 6 Energy Gun 4 | 2 2 . . . . . Energy Cannon 2 | . 2 . . . . . Ballistic Gun . | . . . . . . . Ballistic Cannon 6 | . . . . . . 6 Launcher . | . . . . . . . Special Weapon . | . . . . . . . Impact Weapon . | . . . . . . . Slashing Weapon . | . . . . . . . Piercing Weapon . | . . . . . . . Special Melee Weapon 1 | . 1 . . . . . Unidentified Prototypes 1 | . . . . 1 . . Parts Lost 14 | . . . . . 2 12 Power 1 | . . . . . 1 . Propulsion 7 | . . . . . 1 6 Utility 1 | . . . . . . 1 Weapon 5 | . . . . . . 5 Highest Loss Streak 10 | . . . . . 1 10 To Critical Strikes . | . . . . . . . Average Slot Usage (%) 75 | . 97 86 97 97 81 43 Engine 9 | . 14 14 11 11 7 5 Treads 12 | . 28 28 . . . . Flight 10 | . . . 41 44 37 9 Device 1 | . . . . 2 . 4 Storage 13 | . 14 15 22 17 18 10 Processor 4 | . 11 . . . . . Energy Gun 10 | . 20 14 11 11 9 . Energy Cannon 5 | . 7 14 11 11 9 . Ballistic Cannon 5 | . . . . . . 13 Peak Build Rating 22 | 6 7 8 10 22 11 12 Average Rating 8 | 4 6 7 9 10 10 9 On Entrance 7 | . 6 7 8 10 10 9 Naked Turns . | . . . . . . . Heaviest Build 19 | 13 16 19 19 19 19 19 Greatest Support 40 | 40 40 40 16 16 20 16 Greatest Overweight (x) 6 | 1 . . 1 1 1 6 Average Overweight (x) . | . . . 1 1 . 2 Largest Inventory Capacity 8 | 8 8 8 8 8 8 8 Average Capacity 7 | 7 8 8 8 7 8 8 Most Carried 8 | 7 8 8 7 5 . 3 Average Carried 3 | 2 5 7 1 1 . 1 Final Capacity 8 | 8 8 8 8 8 8 8 Final Carried 7 | 2 7 7 1 1 . 3 Class Distribution -------------------- 84% | Mutant 14% | Scavenger-Mutant Dominant Class ---------------- Mutant | -10/Materials Mutant | -10/Mines Scavenger-Mutant | -9/Materials Scavenger-Mutant | -9/Mines Scavenger-Mutant | -8/Materials Mutant | -8/Storage Resources | -11 -10 -10 -9 -9 -8 -8 ----------- Run | Yrd Mat Min Mat Min Mat Sto Matter Collected 663 | 260 69 1 . . 39 294 Remotely . | . . . . . . . Salvage Created 692 | . 212 . . . 39 441 Parts 44 | . 20 . . . 1 23 Haulers Intercepted . | . . . . . . . Recyclers Shooed 1 | . . . . . . 1 Parts Field Recycled . | . . . . . . . Retrieved Matter . | . . . . . . . Parts Self-Destructed . | . . . . . . . Prevented . | . . . . . . . Kills | -11 -10 -10 -9 -9 -8 -8 ------- Run | Yrd Mat Min Mat Min Mat Sto Combat Hostiles Destroyed 20 | . 8 . . . 1 11 Guns 6 | . 6 . . . . . Cannons 14 | . 2 . . . 1 11 Classes Destroyed 7 | . 4 . . . . 3 Worker 2 | . . . . . . 2 Builder 1 | . 1 . . . . . Recycler 2 | . . . . . . 2 Watcher 2 | . 1 . . . . 1 Swarmer 10 | . 6 . . . . 4 Grunt 8 | . 2 . . . 1 5 Sentry 2 | . . . . . . 2 Best Kill Streak 6 | . 3 . . . 1 6 Combat Bots Only 6 | . 3 . . . 1 6 Max Kills in Single Turn 2 | . 1 . . . 1 2 Gunslinging . | . . . . . . . Exploded . | . . . . . . . Melee . | . . . . . . . Uniques/NPCs Destroyed . | . . . . . . . Combat | -11 -10 -10 -9 -9 -8 -8 -------- Run | Yrd Mat Min Mat Min Mat Sto Hostile Shots Fired 266 | . 69 . . . 16 181 Missed 83 | . 18 . . . 4 61 Damage Taken 2372 | . 517 . . . 203 1652 Core 663 | . 107 . . . 35 521 Absorbed by Shields . | . . . . . . . Core Remaining (%) 85 | 100 . 57 . 100 . . Volleys Fired 80 | . 31 . . . 7 42 Largest 2 | . 2 . . . 2 2 Hottest 125 | . 120 . . . 125 125 Shots Fired 136 | . 55 . . . 14 67 Gun 42 | . 34 . . . 7 1 Cannon 94 | . 21 . . . 7 66 Launcher . | . . . . . . . Special . | . . . . . . . Kinetic 65 | . . . . . . 65 Thermal 71 | . 55 . . . 14 2 Explosive . | . . . . . . . Electromagnetic . | . . . . . . . Robot Hit Streak 10 | . 5 . . . 5 10 Robot Miss Streak 6 | . 6 . . . 1 6 Penetration Max . | . . . . . . . Secondary Targets 2 | . 2 . . . . . Max Gunslinging Chain 1 | . 1 . . . . . Shots Hit Robots 76 | . 24 . . . 11 41 Core Hits 34 | . 11 . . . 2 21 Critical Kills . | . . . . . . . Critical Parts Destroyed . | . . . . . . . Critical Strikes 2 | . . . . . . 2 Blast 2 | . . . . . . 2 Melee Attacks . | . . . . . . . Impact . | . . . . . . . Slashing . | . . . . . . . Piercing . | . . . . . . . Sneak Attacks . | . . . . . . . Combat Hostiles . | . . . . . . . Follow-up Attacks . | . . . . . . . Damage Inflicted 1669 | . 393 . . . 188 1088 Guns 278 | . 199 . . . 64 15 Cannons 1387 | . 194 . . . 121 1072 Explosions . | . . . . . . . Melee . | . . . . . . . Ramming 4 | . . . . . 3 1 Kinetic 1072 | . . . . . . 1072 Thermal 593 | . 393 . . . 185 15 Explosive . | . . . . . . . Electromagnetic . | . . . . . . . Impact . | . . . . . . . Slashing . | . . . . . . . Piercing . | . . . . . . . Highest Corruption . | . . . . . . . Average Corruption . | . . . . . . . Corruption Purged . | . . . . . . . Corruption Blocked . | . . . . . . . Overload Shots . | . . . . . . . Overflow Damage 21 | . . . . . . 21 Projectiles 21 | . . . . . . 21 Explosions . | . . . . . . . Melee . | . . . . . . . Knockbacks 6 | . . . . . . 6 Impact . | . . . . . . . Kinetic 6 | . . . . . . 6 Secondary . | . . . . . . . Self-Inflicted Damage 1 | . . . . . 1 . Shots . | . . . . . . . Rammed 2 | . . . . . 1 1 Targets Rammed 2 | . . . . . 1 1 Kicked . | . . . . . . . Crushed . | . . . . . . . Highest Temperature 456 | . 456 . . . 220 154 Average Temperature 110 | . 138 . . . 123 52 Received Heat Transfer 1188 | . 207 . . . 108 873 Effects 4 | . 4 . . . . . Shutdowns 1 | . 1 . . . . . Energy Bleed 1 | . 1 . . . . . Short Circuit 2 | . 2 . . . . . Siege Activations . | . . . . . . . Robots Corrupted . | . . . . . . . Combat Hostiles . | . . . . . . . Parts Fried . | . . . . . . . Impact Corruptions . | . . . . . . . Robots Melted . | . . . . . . . Combat Hostiles . | . . . . . . . Parts Melted 1 | . . . . . 1 . Heat Transferred 1396 | . 952 . . . 407 37 Parts Sabotaged . | . . . . . . . Parts Stolen . | . . . . . . . Parts Stripped . | . . . . . . . Power Chain Reactions . | . . . . . . . Alert | -11 -10 -10 -9 -9 -8 -8 ------- Run | Yrd Mat Min Mat Min Mat Sto Peak Influence 307 | . 222 35 13 4 35 307 Initial 35 | . . 35 13 4 1 10 Average 117 | . 117 35 13 4 5 190 Maximum Alert Level 1 | . 1 . . . . 1 Low Security (%) 72 | 100 69 100 100 100 100 55 Level 1 27 | . 30 . . . . 44 Level 2 . | . . . . . . . Level 3 . | . . . . . . . Level 4 . | . . . . . . . Level 5 . | . . . . . . . High Security . | . . . . . . . Max Security . | . . . . . . . Squads Dispatched 4 | . 1 . . . 2 1 Investigation 2 | . . . . . 1 1 Extermination . | . . . . . . . Reinforcement 2 | . 1 . . . 1 . Assault . | . . . . . . . Garrison . | . . . . . . . Intercept . | . . . . . . . Searches Triggered . | . . . . . . . Construction Impeded . | . . . . . . . Haulers Reinforced . | . . . . . . . Active Scanning Responses . | . . . . . . . Cargo Convoy Interrupts . | . . . . . . . Stealth | -11 -10 -10 -9 -9 -8 -8 --------- Run | Yrd Mat Min Mat Min Mat Sto Distress Signals 3 | . 1 . . . . 2 Communications Jammed . | . . . . . . . Distress Signals . | . . . . . . . Times Spotted 42 | . 13 . . . 7 22 Peak Tracking Total 12 | . 5 . . . 4 12 Tactical Retreats 4 | . 1 . . . 1 2 Traps | -11 -10 -10 -9 -9 -8 -8 ------- Run | Yrd Mat Min Mat Min Mat Sto Traps Triggered . | . . . . . . . Indirectly . | . . . . . . . Trap Hack Attempts . | . . . . . . . Triggered . | . . . . . . . Disarmed . | . . . . . . . Reprogrammed . | . . . . . . . Reused . | . . . . . . . Traps Extracted . | . . . . . . . Installed . | . . . . . . . Triggered . | . . . . . . . Machines | -11 -10 -10 -9 -9 -8 -8 ---------- Run | Yrd Mat Min Mat Min Mat Sto Machines Disabled 1 | . 1 . . . . . Max in Single Turn 1 | . 1 . . . . . Machines Repaired . | . . . . . . . Machines Dismantled . | . . . . . . . Machines Sabotaged . | . . . . . . . Overloaded Fab Kills . | . . . . . . . Hacking | -11 -10 -10 -9 -9 -8 -8 --------- Run | Yrd Mat Min Mat Min Mat Sto Machines Accessed 4 | . 1 . . 1 1 1 Terminals 3 | . 1 . . . 1 1 Fabricators . | . . . . . . . Repair Stations . | . . . . . . . Recycling Units . | . . . . . . . Scanalyzers . | . . . . . . . Garrison Access . | . . . . . . . Total Hacks 8 | . 2 . . 1 3 2 Successful 1 | . . . . 1 . . Failed 7 | . 2 . . . 3 2 Catastrophic 3 | . 1 . . . 1 1 Database Lockouts . | . . . . . . . Manual . | . . . . . . . Terminals 7 | . 2 . . . 3 2 Fabricators . | . . . . . . . Repair Stations . | . . . . . . . Recycling Units . | . . . . . . . Scanalyzers . | . . . . . . . Garrison Access . | . . . . . . . Terminal Hacks 1 | . . . . 1 . . Open Door 1 | . . . . 1 . . Fabricator Hacks . | . . . . . . . Repair Station Hacks . | . . . . . . . Recycling Unit Hacks . | . . . . . . . Scanalyzer . | . . . . . . . Garrison Access Hacks . | . . . . . . . Unauthorized Hacks . | . . . . . . . Terminals . | . . . . . . . Fabricators . | . . . . . . . Repair Stations . | . . . . . . . Recycling Units . | . . . . . . . Scanalyzers . | . . . . . . . Garrison Access . | . . . . . . . Data Cores Recovered . | . . . . . . . Used . | . . . . . . . Hacking Detections 3 | . 1 . . . 1 1 Full Trace Events 3 | . 1 . . . 1 1 Feedback Events . | . . . . . . . Feedback Blocked . | . . . . . . . Robot Schematics Acquired . | . . . . . . . Robots Built . | . . . . . . . Authchips . | . . . . . . . Time . | . . . . . . . Total Robot Build Rating . | . . . . . . . Part Schematics Acquired . | . . . . . . . Parts Built . | . . . . . . . Authchips . | . . . . . . . Time . | . . . . . . . Total Part Build Rating . | . . . . . . . Parts Repaired . | . . . . . . . Time . | . . . . . . . Parts Recycled . | . . . . . . . Recycled Matter . | . . . . . . . Retrieved Matter . | . . . . . . . Retrieved Components . | . . . . . . . Parts Scanalyzed . | . . . . . . . Part Schematics Acquired . | . . . . . . . Parts Damaged . | . . . . . . . Bothacking | -11 -10 -10 -9 -9 -8 -8 ------------ Run | Yrd Mat Min Mat Min Mat Sto Used RIF Installer . | . . . . . . . Robots Hacked . | . . . . . . . Non-combat . | . . . . . . . Combat . | . . . . . . . Robot Hacks Applied . | . . . . . . . Relay Couplers Released . | . . . . . . . Fabnet Peak Effective % . | . . . . . . . Robots Rewired . | . . . . . . . Allies Hacked . | . . . . . . . Hacks Repelled . | . . . . . . . Allies | -11 -10 -10 -9 -9 -8 -8 -------- Run | Yrd Mat Min Mat Min Mat Sto Total Allies . | . . . . . . . Largest Group . | . . . . . . . Highest-Rated Group . | . . . . . . . Highest-Rated Ally . | . . . . . . . Total Orders . | . . . . . . . Ally Attacks . | . . . . . . . Total Damage . | . . . . . . . Kills . | . . . . . . . Allies Corrupted . | . . . . . . . Allies Melted . | . . . . . . . Intel | -11 -10 -10 -9 -9 -8 -8 ------- Run | Yrd Mat Min Mat Min Mat Sto Robot Analysis Total . | . . . . . . . Derelict Logs Recovered . | . . . . . . . Drone Launches . | . . . . . . . Drone Recoveries . | . . . . . . . Exploration | -11 -10 -10 -9 -9 -8 -8 ------------- Run | Yrd Mat Min Mat Min Mat Sto Turns Passed 1407 | 70 515 90 98 52 55 527 Spaces Moved 734 | 46 255 56 83 42 62 190 Core 29 | 18 . . . . . 11 Treads 339 | 28 255 56 . . . . Legs . | . . . . . . . Wheels . | . . . . . . . Hover . | . . . . . . . Flight 366 | . . . 83 42 62 179 Fastest Speed 28 | 50 160 160 111 111 28 31 Average Speed 152 | 125 160 160 111 111 51 206 Slowest Speed 360 | 160 160 160 111 111 111 360 Overloaded Moves . | . . . . . . . Propulsion Burnouts . | . . . . . . . Robots Hopped 5 | . . . . . 4 1 Cave-ins Triggered . | . . . . . . . Exploration Rate (%) 18 | 4 49 15 9 14 7 34 Regions Visited 6 Branch Regions 3 Pre-discovered Areas . | . . . . . . . Known Exits Taken . | . . . . . . . Unknown Exits Taken 6 | 1 1 1 1 1 1 . Scrap Searched 1 | . . 1 . . . . Spaces Dug . | . . . . . . . Terrain Destroyed 8 | . . . . . . 8 Melee . | . . . . . . . Projectile 8 | . . . . . . 8 AOE . | . . . . . . . Terrain Rammed . | . . . . . . . Walls Destroyed . | . . . . . . . Machines Disabled . | . . . . . . . Actions | -11 -10 -10 -9 -9 -8 -8 --------- Run | Yrd Mat Min Mat Min Mat Sto Total 884 | 58 309 57 90 48 66 256 Wait 2 | . . . . . . 2 Move 720 | 45 254 55 82 41 55 188 Hop 3 | . . . . . 2 1 Pick Up 31 | 7 10 1 . 1 . 12 Fast Attach 3 | 1 2 . . . . . Attach 26 | 5 3 1 4 3 1 9 Detach 2 | . . . . 2 . . Swap 3 | . 2 . . . . 1 Drop 12 | . 7 . 4 1 . . Fire 80 | . 31 . . . 7 42 Melee . | . . . . . . . Ram 2 | . . . . . 1 1 Kick . | . . . . . . . Crush . | . . . . . . . Escape Stasis . | . . . . . . . Rewire . | . . . . . . . Trap . | . . . . . . . Miscellaneous . | . . . . . . . Route ------- -11/Scrapyard -10/Materials -10/Mines -9/Materials -9/Mines -8/Materials -8/Storage History --------- Turn | Location | Event 4 | -11/Scrapyard | Discovered new exit (range 14) 71 | -11/Scrapyard | Entered Materials 306 | -10/Materials | Build established: Mutant 574 | -10/Materials | Discovered new exit (range 8) 586 | -10/Materials | Entered Mines 646 | -10/Mines | Discovered new exit (range 14) 676 | -10/Mines | Entered Materials 676 | -9/Materials | Evolved 2 slots: Propulsion x2 756 | -9/Materials | Discovered new exit (range 13) 774 | -9/Materials | Entered Mines 781 | -9/Mines | Found the Drone Emporium 787 | -9/Mines | Found Prototype Device 789 | -9/Mines | Identified Bomb Drone Bay 820 | -9/Mines | Discovered new exit (range 3) 826 | -9/Mines | Entered Materials 826 | -8/Materials | Evolved 2 slots: Propulsion x1, Utility x1 834 | -8/Materials | Discovered new exit (range 13) 881 | -8/Materials | Entered Storage 971 | -8/Storage | Core integrity fell below 50% 1025 | -8/Storage | Lost 10 parts (1p4n1u4w) 1043 | -8/Storage | Core integrity fell below 20% 1408 | -8/Storage | Destroyed by G-47 Trooper with Particle Gun Last Messages --------------- R-06 Scavenger collects Beam Rifle. Acquired 9 matter. R-06 Scavenger destroyed. Acquired 63 matter. Acquired 12 matter. K-01 Serf collects debris. Destroyed Wheel. K-01 Serf knocked back. Destroyed Sml. Matter Pod. K-01 Serf suffers critical hit (Blast). Destroyed Lgt. Ion Engine. K-01 Serf destroyed. U-05 Engineer builds a Door. Acquired 4 matter. R-06 Scavenger destroyed. Acquired 66 matter. W-25 Informer destroyed. K-01 Serf collects debris. W-25 Informer sends out distress signal. Flight Unit destroyed. Map ----- +----------------------------------------------------+ | ????????????????????????#######?????????????????# | | ???????????????????????? ?#######????????# | | ?????????????????????????? # ########## | | ???????????????????????# # | | ???????????????????????# + | | ???????????????????????# # | | ?????????????????????????????????# ####+##### | | ?????????????????????????????????## ##????????# | | ??????????????????????????????????# #?????????# | | ??????????????????????????????????# #?????????# | | ??????????????????????????????????# #?????????# | | ??????????????????????????????????# #?????????# | | ??????????????????????????????????# #?????????# | | ??????????????????????????????????# #?????????# | | ?????????????????????????????????## #?????????# | | ?????????????????????????????????+ #?????????# | | ?????????????????????????????????## #?????????# | | ??????????????????????????????????# #?????????# | | ??????????????????????????????????# #??###????# | | ??????????????????????????????????# #?#"T"##??# | | ??????????????????????????????????# #?? ?# | | ??????????????????????????????????# #??? ?# | | ??????????????????????????????????# #??? """" # | | ????????? ###+################## #?? """" # | | ????????? g ##? """" + | | ????????? g @ /k """" # | | ????????? % ## ## | | ????????????### #;#################### ??? | | ???????????????????????????????????????# ??? | | ???????????????????????????????????????####" "???? | | ??????????????????????????????????????????#"G"???? | | ??????????????????????????????????????????# "????? | | ??????????????????????????????????????????###????? | | ?????????????????????????????????????????????????? | | ?????????????????????????????????????????????????? | | ?????????????????????????????????????????????????? | | ?????????????????????????????????????????????????? | | ?????????????????????????????????????????????????? | | ?????????????????????????????????????????????????? | | ?????????????????????????????????????????????????? | | ?????????????????????????????????????????????????? | | ?????????????????????????????????????????????????? | | ?????????????????????????????????????????????????? | | ?????????????????????????????????????????????????? | | ?????????????????????????????????????????????????? | | ?????????????????????????????????????????????????? | | ?????????????????????????????????????????????????? | | ?????????????????????????????????????????????????? | | ?????????????????????????????????????????????????? | | ?????????????????????????????????????????????????? | +----------------------------------------------------+ Best States ------------- Heat Dissipation 45 Energy Generation 10 Energy Capacity 250 Matter Stores 300 Matter Capacity 300 Sight Range 16 Terrain Scan Density 10 Evasion (%) 64 Recoil Reduction 2 Item Schematics ----------------- None Robot Schematics ------------------ None Fabricated ------------ Nothing Alien Tech Used ----------------- None Achievements -------------- Cya! Challenges ------------ None Game ------ Seed SpikedAngularExtrapolator Manual? 0 Play Time 00:15:09 Cumulative 3.8 hours Start 2024.12.28 @ 07:03:26 End 2024.12.28 @ 07:18:14 Sessions 1 Manual Loads 0 Difficulty Rogue Special Mode None Game No. 12 Rogue 9 Adventurer 3 Explorer 0 Win Type - Total 0 Types 0/0/0/0/0/0/0/0/0 Lore% 5 Gallery% 9 Achievement% 9 Wizard Run 0 Options --------- Layout 1 ASCII 0 Keyboard 0 Movement Mouse Keybinds 0 Fullscreen 1 Font 24/Smallcaps Map View 50x35 Zoom Use 0% Tactical HUD 0 Map Filters NONE Filters NONE Steam 1 RUN: b0dd9383-27bd-4f67-b11d-d9e10899484c